[Event "Titled Tuesday Blitz January 10 Early 2023"]
[White "Wagner, Dennis"]
[Black "Shimanov, Aleksandr"]
[WhiteFideId "24650684"]
[BlackFideId "4198603"]
[WhiteElo "2595"]
[BlackElo "2581"]
[Result "0-1"]
[Round "03"]
[TimeControl "180+2"]
[Date "2023.01.10"]
[WhiteClock "0:00:03"]
[BlackClock "0:00:06"]

1. d4 {[%clk 0:03:00]}  e6 {[%clk 0:02:58]} 2. c4 {[%clk 0:03:00]}  c5 {[%clk 0:02:57]} 3. d5 {[%clk 0:02:59]}  d6 {[%clk 0:02:56]} 4. Nc3 {[%clk 0:02:59]}  g6 {[%clk 0:02:56]} 5. e4 {[%clk 0:02:58]}  Bg7 {[%clk 0:02:56]} 6. h3 {[%clk 0:02:53]}  Bxc3+ {[%clk 0:02:55]} 7. bxc3 {[%clk 0:02:54]}  e5 {[%clk 0:02:55]} 8. Bd3 {[%clk 0:02:45]}  Nd7 {[%clk 0:02:54]} 9. Ne2 {[%clk 0:02:44]}  Qe7 {[%clk 0:02:53]} 10. O-O {[%clk 0:02:41]}  f6 {[%clk 0:02:49]} 11. a4 {[%clk 0:02:38]}  a5 {[%clk 0:02:49]} 12. Rb1 {[%clk 0:02:38]}  Kd8 {[%clk 0:02:48]} 13. Qb3 {[%clk 0:02:20]}  Kc7 {[%clk 0:02:38]} 14. Qb5 {[%clk 0:02:18]}  g5 {[%clk 0:02:22]} 15. Ng3 {[%clk 0:02:02]}  Nh6 {[%clk 0:02:19]} 16. Be3 {[%clk 0:01:59]}  Ra6 {[%clk 0:02:17]} 17. Rfd1 {[%clk 0:01:08]}  Rd8 {[%clk 0:02:15]} 18. Be2 {[%clk 0:01:05]}  Nb8 {[%clk 0:01:39]} 19. Rb2 {[%clk 0:00:53]}  b6 {[%clk 0:01:36]} 20. Rdb1 {[%clk 0:00:45]}  Bd7 {[%clk 0:01:34]} 21. Qb3 {[%clk 0:00:41]}  Qe8 {[%clk 0:01:32]} 22. Bh5 {[%clk 0:00:33]}  Qf8 {[%clk 0:01:29]} 23. Qa2 {[%clk 0:00:24]}  Ng8 {[%clk 0:01:26]} 24. Rb3 {[%clk 0:00:24]}  Ne7 {[%clk 0:00:57]} 25. Bg4 {[%clk 0:00:23]}  Bxg4 {[%clk 0:00:56]} 26. hxg4 {[%clk 0:00:24]}  Nd7 {[%clk 0:00:56]} 27. Qb2 {[%clk 0:00:18]}  Qf7 {[%clk 0:00:54]} 28. f3 {[%clk 0:00:18]}  Rb8 {[%clk 0:00:46]} 29. Kf2 {[%clk 0:00:18]}  Qe8 {[%clk 0:00:43]} 30. Rh1 {[%clk 0:00:18]}  Nf8 {[%clk 0:00:43]} 31. Qa2 {[%clk 0:00:18]}  Neg6 {[%clk 0:00:38]} 32. Nf5 {[%clk 0:00:16]}  Ne7 {[%clk 0:00:35]} 33. Rh6 {[%clk 0:00:10]}  Nxf5 {[%clk 0:00:34]} 34. gxf5 {[%clk 0:00:11]}  Qf7 {[%clk 0:00:35]} 35. Rb1 {[%clk 0:00:11]}  Ra7 {[%clk 0:00:33]} 36. Rbh1 {[%clk 0:00:11]}  Kc8 {[%clk 0:00:30]} 37. g4 {[%clk 0:00:11]}  Rbb7 {[%clk 0:00:28]} 38. Kg3 {[%clk 0:00:12]}  Qg7 {[%clk 0:00:27]} 39. Qb3 {[%clk 0:00:12]}  Qe7 {[%clk 0:00:11]} 40. Qb5 {[%clk 0:00:12]}  Kd8 {[%clk 0:00:10]} 41. Qc6 {[%clk 0:00:11]}  Rb8 {[%clk 0:00:10]} 42. Rb1 {[%clk 0:00:09]}  Rc7 {[%clk 0:00:10]} 43. Qb5 {[%clk 0:00:07]}  Rcb7 {[%clk 0:00:10]} 44. Rbh1 {[%clk 0:00:07]}  Qf7 {[%clk 0:00:08]} 45. R1h2 {[%clk 0:00:07]}  Rd7 {[%clk 0:00:08]} 46. R2h3 {[%clk 0:00:07]}  Rbb7 {[%clk 0:00:08]} 47. Rh1 {[%clk 0:00:08]}  Ke8 {[%clk 0:00:08]} 48. Rb1 {[%clk 0:00:08]}  Kd8 {[%clk 0:00:09]} 49. Qa6 {[%clk 0:00:08]}  Rdc7 {[%clk 0:00:08]} 50. Rxb6 {[%clk 0:00:08]}  Rxb6 {[%clk 0:00:08]} 51. Qxb6 {[%clk 0:00:09]}  Nd7 {[%clk 0:00:08]} 52. Qxa5 {[%clk 0:00:09]}  Kc8 {[%clk 0:00:08]} 53. Qa8+ {[%clk 0:00:09]}  Nb8 {[%clk 0:00:08]} 54. Qa5 {[%clk 0:00:08]}  Rb7 {[%clk 0:00:08]} 55. Rh1 {[%clk 0:00:07]}  Rb2 {[%clk 0:00:08]} 56. Qa8 {[%clk 0:00:06]}  Rb7 {[%clk 0:00:07]} 57. Qa5 {[%clk 0:00:06]}  Rb2 {[%clk 0:00:07]} 58. Bxc5 {[%clk 0:00:06]}  dxc5 {[%clk 0:00:07]} 59. Qxc5+ {[%clk 0:00:06]}  Kb7 {[%clk 0:00:07]} 60. a5 {[%clk 0:00:05]}  Na6 {[%clk 0:00:07]} 61. Qc6+ {[%clk 0:00:05]}  Ka7 {[%clk 0:00:07]} 62. c5 {[%clk 0:00:06]}  Rb7 {[%clk 0:00:07]} 63. d6 {[%clk 0:00:06]}  Qc4 {[%clk 0:00:07]} 64. Rd1 {[%clk 0:00:05]}  Qxc5 {[%clk 0:00:07]} 65. Qe8 {[%clk 0:00:05]}  Rb2 {[%clk 0:00:05]} 66. Kh3 {[%clk 0:00:03]}  Qf2 {[%clk 0:00:05]} 67. Qe7+ {[%clk 0:00:02]}  Rb7 {[%clk 0:00:05]} 68. d7 {[%clk 0:00:02]}  Qxf3+ {[%clk 0:00:05]} 69. Kh2 {[%clk 0:00:03]}  Qe2+ {[%clk 0:00:05]} 70. Kh3 {[%clk 0:00:03]}  Qf3+ {[%clk 0:00:06]} 71. Kh2 {[%clk 0:00:04]}  Rb2+ {[%clk 0:00:06]} 72. Kg1 {[%clk 0:00:03]}  Qg2# {[%clk 0:00:06]} 0-1


[Site "https://www.chess.com"]

[Event "Titled Tuesday Blitz January 10 Early 2023"]
[White "Seo, Jung Min"]
[Black "Sanal, Vahap"]
[WhiteFideId "1734687"]
[BlackFideId "6300545"]
[WhiteElo "2494"]
[BlackElo "2600"]
[Result "1/2-1/2"]
[Round "03"]
[TimeControl "180+2"]
[Date "2023.01.10"]
[WhiteClock "0:00:59"]
[BlackClock "0:00:13"]

1. e4 {[%clk 0:02:59]}  d6 {[%clk 0:02:57]} 2. d4 {[%clk 0:02:59]}  Nf6 {[%clk 0:02:58]} 3. Nc3 {[%clk 0:03:00]}  e5 {[%clk 0:02:58]} 4. dxe5 {[%clk 0:03:00]}  dxe5 {[%clk 0:02:58]} 5. Qxd8+ {[%clk 0:03:00]}  Kxd8 {[%clk 0:02:58]} 6. Bc4 {[%clk 0:03:01]}  Ke8 {[%clk 0:02:59]} 7. Nf3 {[%clk 0:03:00]}  Bd6 {[%clk 0:02:59]} 8. O-O {[%clk 0:02:59]}  a6 {[%clk 0:02:58]} 9. a4 {[%clk 0:02:58]}  h6 {[%clk 0:02:57]} 10. h3 {[%clk 0:02:56]}  Ke7 {[%clk 0:02:54]} 11. Be3 {[%clk 0:02:54]}  Be6 {[%clk 0:02:54]} 12. Bxe6 {[%clk 0:02:53]}  Kxe6 {[%clk 0:02:55]} 13. Rfd1 {[%clk 0:02:53]}  Nc6 {[%clk 0:02:54]} 14. Nd2 {[%clk 0:02:48]}  Nb4 {[%clk 0:02:51]} 15. Rdc1 {[%clk 0:02:45]}  Rhd8 {[%clk 0:02:49]} 16. Nc4 {[%clk 0:02:43]}  Be7 {[%clk 0:02:49]} 17. f3 {[%clk 0:02:32]}  Nh5 {[%clk 0:02:45]} 18. Na2 {[%clk 0:02:29]}  Nxa2 {[%clk 0:02:41]} 19. Rxa2 {[%clk 0:02:29]}  Bg5 {[%clk 0:02:36]} 20. Raa1 {[%clk 0:02:21]}  Bxe3+ {[%clk 0:02:27]} 21. Nxe3 {[%clk 0:02:21]}  Rd2 {[%clk 0:02:23]} 22. Rd1 {[%clk 0:02:21]}  Re2 {[%clk 0:02:13]} 23. Re1 {[%clk 0:02:20]}  Rxe1+ {[%clk 0:02:10]} 24. Rxe1 {[%clk 0:02:19]}  Rd8 {[%clk 0:02:10]} 25. Rd1 {[%clk 0:02:17]}  Rd4 {[%clk 0:01:51]} 26. b3 {[%clk 0:02:12]}  g6 {[%clk 0:01:40]} 27. Kf2 {[%clk 0:02:10]}  Nf4 {[%clk 0:01:30]} 28. h4 {[%clk 0:02:08]}  Kd6 {[%clk 0:01:25]} 29. g3 {[%clk 0:02:02]}  Ne6 {[%clk 0:01:25]} 30. Ke2 {[%clk 0:01:41]}  Rxd1 {[%clk 0:01:25]} 31. Kxd1 {[%clk 0:01:40]}  Nd4 {[%clk 0:01:26]} 32. Nc4+ {[%clk 0:01:38]}  Ke6 {[%clk 0:01:24]} 33. Nd2 {[%clk 0:01:38]}  Kd6 {[%clk 0:01:14]} 34. c3 {[%clk 0:01:38]}  Nc6 {[%clk 0:01:10]} 35. b4 {[%clk 0:01:36]}  Ke6 {[%clk 0:01:07]} 36. Ke2 {[%clk 0:01:34]}  Na7 {[%clk 0:01:05]} 37. Kd3 {[%clk 0:01:33]}  Nc8 {[%clk 0:01:05]} 38. Nc4 {[%clk 0:01:31]}  h5 {[%clk 0:01:02]} 39. a5 {[%clk 0:01:30]}  f5 {[%clk 0:01:02]} 40. Ne3 {[%clk 0:01:30]}  Nd6 {[%clk 0:01:01]} 41. Nd5 {[%clk 0:01:29]}  c6 {[%clk 0:00:56]} 42. Ne3 {[%clk 0:01:26]}  Ne8 {[%clk 0:00:53]} 43. Nc4 {[%clk 0:01:24]}  Nf6 {[%clk 0:00:53]} 44. Ne3 {[%clk 0:01:24]}  Nd7 {[%clk 0:00:53]} 45. Nc4 {[%clk 0:01:24]}  Nf6 {[%clk 0:00:39]} 46. Ne3 {[%clk 0:01:23]}  Ng8 {[%clk 0:00:39]} 47. Nc4 {[%clk 0:01:22]}  Nh6 {[%clk 0:00:40]} 48. Ne3 {[%clk 0:01:21]}  Nf7 {[%clk 0:00:40]} 49. Nc4 {[%clk 0:01:20]}  Kf6 {[%clk 0:00:29]} 50. Ke3 {[%clk 0:01:17]}  Ke7 {[%clk 0:00:24]} 51. Nb2 {[%clk 0:01:08]}  Nd6 {[%clk 0:00:23]} 52. Nd3 {[%clk 0:01:06]}  Nc4+ {[%clk 0:00:23]} 53. Ke2 {[%clk 0:01:06]}  Kf6 {[%clk 0:00:21]} 54. Nc5 {[%clk 0:01:06]}  Nd6 {[%clk 0:00:22]} 55. Ke3 {[%clk 0:01:05]}  Ke7 {[%clk 0:00:21]} 56. Ke2 {[%clk 0:01:03]}  Kf7 {[%clk 0:00:20]} 57. Kd3 {[%clk 0:01:03]}  Kf6 {[%clk 0:00:20]} 58. Ke3 {[%clk 0:01:03]}  Kf7 {[%clk 0:00:16]} 59. Nd3 {[%clk 0:01:00]}  Ke6 {[%clk 0:00:15]} 60. Nc5+ {[%clk 0:01:01]}  Ke7 {[%clk 0:00:15]} 61. Nd3 {[%clk 0:01:01]}  Nc4+ {[%clk 0:00:13]} 62. Ke2 {[%clk 0:01:01]}  Kf6 {[%clk 0:00:13]} 63. Nc5 {[%clk 0:01:00]}  Nd6 {[%clk 0:00:13]} 64. Ke3 {[%clk 0:00:59]} 1/2-1/2


[Site "https://www.chess.com"]

[Event "Titled Tuesday Blitz January 10 Early 2023"]
[White "Movahed, Sina"]
[Black "Krysa, Leandro"]
[WhiteFideId "42520835"]
[BlackFideId "116807"]
[WhiteElo "2340"]
[BlackElo "2541"]
[Result "1/2-1/2"]
[Round "03"]
[TimeControl "180+2"]
[Date "2023.01.10"]
[WhiteClock "0:00:15"]
[BlackClock "0:00:17"]

1. e4 {[%clk 0:02:59]}  e5 {[%clk 0:03:00]} 2. Nf3 {[%clk 0:03:00]}  Nf6 {[%clk 0:03:00]} 3. Nxe5 {[%clk 0:02:59]}  d6 {[%clk 0:03:00]} 4. Nf3 {[%clk 0:03:00]}  Nxe4 {[%clk 0:03:00]} 5. d4 {[%clk 0:03:01]}  d5 {[%clk 0:03:01]} 6. Bd3 {[%clk 0:03:01]}  Be7 {[%clk 0:03:00]} 7. O-O {[%clk 0:03:02]}  Nc6 {[%clk 0:03:00]} 8. c4 {[%clk 0:02:59]}  Nb4 {[%clk 0:02:55]} 9. Be2 {[%clk 0:02:51]}  O-O {[%clk 0:02:52]} 10. a3 {[%clk 0:02:50]}  Nc6 {[%clk 0:02:52]} 11. Re1 {[%clk 0:02:42]}  Bf5 {[%clk 0:02:46]} 12. Bd3 {[%clk 0:02:36]}  Bf6 {[%clk 0:02:28]} 13. Nc3 {[%clk 0:02:05]}  Nxc3 {[%clk 0:02:26]} 14. bxc3 {[%clk 0:02:06]}  Bxd3 {[%clk 0:02:25]} 15. Qxd3 {[%clk 0:02:07]}  dxc4 {[%clk 0:02:26]} 16. Qxc4 {[%clk 0:02:08]}  Qd6 {[%clk 0:02:13]} 17. a4 {[%clk 0:02:06]}  Na5 {[%clk 0:01:44]} 18. Qb5 {[%clk 0:02:04]}  Qb6 {[%clk 0:01:40]} 19. Ba3 {[%clk 0:01:57]}  Rfd8 {[%clk 0:01:35]} 20. Nd2 {[%clk 0:01:42]}  Qxb5 {[%clk 0:01:16]} 21. axb5 {[%clk 0:01:43]}  b6 {[%clk 0:01:17]} 22. Bb4 {[%clk 0:01:38]}  c5 {[%clk 0:01:04]} 23. Bxa5 {[%clk 0:01:17]}  bxa5 {[%clk 0:01:05]} 24. Rxa5 {[%clk 0:01:17]}  cxd4 {[%clk 0:01:02]} 25. c4 {[%clk 0:01:09]}  d3 {[%clk 0:00:57]} 26. Kf1 {[%clk 0:01:08]}  Bc3 {[%clk 0:00:55]} 27. Ra2 {[%clk 0:01:07]}  Rac8 {[%clk 0:00:38]} 28. Rc1 {[%clk 0:01:04]}  Bxd2 {[%clk 0:00:38]} 29. Rxd2 {[%clk 0:01:04]}  Kf8 {[%clk 0:00:34]} 30. Rc3 {[%clk 0:01:00]}  Rd4 {[%clk 0:00:32]} 31. c5 {[%clk 0:00:49]}  Rd5 {[%clk 0:00:30]} 32. c6 {[%clk 0:00:47]}  Rxb5 {[%clk 0:00:21]} 33. Rdxd3 {[%clk 0:00:47]}  Rb6 {[%clk 0:00:18]} 34. c7 {[%clk 0:00:29]}  Ke7 {[%clk 0:00:18]} 35. Re3+ {[%clk 0:00:24]}  Kf6 {[%clk 0:00:14]} 36. f4 {[%clk 0:00:19]}  a5 {[%clk 0:00:08]} 37. Kf2 {[%clk 0:00:19]}  a4 {[%clk 0:00:08]} 38. Rc5 {[%clk 0:00:16]}  g6 {[%clk 0:00:07]} 39. g4 {[%clk 0:00:15]}  Rb7 {[%clk 0:00:06]} 40. Rec3 {[%clk 0:00:07]}  a3 {[%clk 0:00:05]} 41. Rc6+ {[%clk 0:00:08]}  Kg7 {[%clk 0:00:05]} 42. Rxa3 {[%clk 0:00:07]}  Rbxc7 {[%clk 0:00:05]} 43. Rxc7 {[%clk 0:00:08]}  Rxc7 {[%clk 0:00:06]} 44. Kg3 {[%clk 0:00:09]}  Rd7 {[%clk 0:00:06]} 45. h4 {[%clk 0:00:09]}  h6 {[%clk 0:00:07]} 46. Rf3 {[%clk 0:00:09]}  Rc7 {[%clk 0:00:07]} 47. f5 {[%clk 0:00:10]}  gxf5 {[%clk 0:00:07]} 48. Rxf5 {[%clk 0:00:09]}  Rc3+ {[%clk 0:00:07]} 49. Rf3 {[%clk 0:00:10]}  Rc4 {[%clk 0:00:08]} 50. Re3 {[%clk 0:00:10]}  Rd4 {[%clk 0:00:08]} 51. Rf3 {[%clk 0:00:11]}  Rc4 {[%clk 0:00:08]} 52. Rf4 {[%clk 0:00:11]}  Rc3+ {[%clk 0:00:08]} 53. Kg2 {[%clk 0:00:12]}  Rc2+ {[%clk 0:00:08]} 54. Kf3 {[%clk 0:00:12]}  Rc3+ {[%clk 0:00:09]} 55. Ke4 {[%clk 0:00:12]}  Rh3 {[%clk 0:00:08]} 56. h5 {[%clk 0:00:12]}  Ra3 {[%clk 0:00:08]} 57. Kd5 {[%clk 0:00:12]}  Ra5+ {[%clk 0:00:08]} 58. Ke4 {[%clk 0:00:12]}  Ra4+ {[%clk 0:00:08]} 59. Ke5 {[%clk 0:00:12]}  Rxf4 {[%clk 0:00:08]} 60. Kxf4 {[%clk 0:00:12]}  Kf6 {[%clk 0:00:08]} 61. Ke3 {[%clk 0:00:08]}  Kg5 {[%clk 0:00:09]} 62. Kf3 {[%clk 0:00:08]}  f5 {[%clk 0:00:08]} 63. gxf5 {[%clk 0:00:08]}  Kxf5 {[%clk 0:00:09]} 64. Kg3 {[%clk 0:00:08]}  Kg5 {[%clk 0:00:10]} 65. Kf3 {[%clk 0:00:09]}  Kxh5 {[%clk 0:00:11]} 66. Kg2 {[%clk 0:00:10]}  Kg5 {[%clk 0:00:12]} 67. Kh1 {[%clk 0:00:11]}  h5 {[%clk 0:00:13]} 68. Kg1 {[%clk 0:00:11]}  h4 {[%clk 0:00:13]} 69. Kh1 {[%clk 0:00:12]}  Kg4 {[%clk 0:00:14]} 70. Kg1 {[%clk 0:00:13]}  h3 {[%clk 0:00:15]} 71. Kh1 {[%clk 0:00:14]}  Kg3 {[%clk 0:00:16]} 72. Kg1 {[%clk 0:00:14]}  h2+ {[%clk 0:00:17]} 73. Kh1 {[%clk 0:00:15]}  Kh3 {[%clk 0:00:17]} 1/2-1/2


[Site "https://www.chess.com"]

[Event "Titled Tuesday Blitz January 10 Early 2023"]
[White "Blanco Ronquillo, Humberto L."]
[Black "Durarbayli, Vasif"]
[WhiteFideId "3504239"]
[BlackFideId "13402935"]
[WhiteElo "2442"]
[BlackElo "2627"]
[Result "0-1"]
[Round "03"]
[TimeControl "180+2"]
[Date "2023.01.10"]
[WhiteClock "0:00:47"]
[BlackClock "0:01:19"]

1. e4 {[%clk 0:02:59]}  c5 {[%clk 0:02:59]} 2. Nf3 {[%clk 0:02:58]}  e6 {[%clk 0:03:00]} 3. d4 {[%clk 0:02:57]}  cxd4 {[%clk 0:03:01]} 4. Nxd4 {[%clk 0:02:57]}  Nf6 {[%clk 0:03:01]} 5. Nc3 {[%clk 0:02:56]}  d6 {[%clk 0:03:02]} 6. g3 {[%clk 0:02:56]}  Nc6 {[%clk 0:02:57]} 7. Bg2 {[%clk 0:02:55]}  Bd7 {[%clk 0:02:57]} 8. O-O {[%clk 0:02:52]}  a6 {[%clk 0:02:56]} 9. a4 {[%clk 0:02:52]}  Be7 {[%clk 0:02:52]} 10. h3 {[%clk 0:02:46]}  O-O {[%clk 0:02:48]} 11. Nb3 {[%clk 0:02:46]}  Na5 {[%clk 0:02:45]} 12. Nd4 {[%clk 0:02:35]}  Rc8 {[%clk 0:02:42]} 13. Re1 {[%clk 0:02:35]}  Qc7 {[%clk 0:02:25]} 14. Kh2 {[%clk 0:02:22]}  Rfd8 {[%clk 0:02:16]} 15. f4 {[%clk 0:02:21]}  Be8 {[%clk 0:02:14]} 16. Qd3 {[%clk 0:01:43]}  Nc4 {[%clk 0:02:07]} 17. g4 {[%clk 0:01:12]}  g6 {[%clk 0:01:55]} 18. g5 {[%clk 0:01:01]}  Nh5 {[%clk 0:01:54]} 19. Nce2 {[%clk 0:00:59]}  e5 {[%clk 0:01:23]} 20. Nb3 {[%clk 0:00:58]}  exf4 {[%clk 0:01:21]} 21. Kh1 {[%clk 0:00:47]}  Ne5 {[%clk 0:01:19]} 0-1


[Site "https://www.chess.com"]

[Event "Titled Tuesday Blitz January 10 Early 2023"]
[White "Ohanyan, Emin"]
[Black "Ashraf, Artin"]
[WhiteFideId "13312022"]
[BlackFideId "22514805"]
[WhiteElo "2444"]
[BlackElo "2314"]
[Result "1-0"]
[Round "03"]
[TimeControl "180+2"]
[Date "2023.01.10"]
[WhiteClock "0:00:16"]
[BlackClock "0:00:14"]

1. e4 {[%clk 0:02:59]}  Nc6 {[%clk 0:02:57]} 2. Nc3 {[%clk 0:02:59]}  e5 {[%clk 0:02:56]} 3. Bc4 {[%clk 0:02:58]}  Nf6 {[%clk 0:02:55]} 4. d3 {[%clk 0:02:58]}  Bb4 {[%clk 0:02:53]} 5. Ne2 {[%clk 0:02:57]}  d5 {[%clk 0:02:48]} 6. exd5 {[%clk 0:02:58]}  Nxd5 {[%clk 0:02:49]} 7. O-O {[%clk 0:02:59]}  Nxc3 {[%clk 0:02:39]} 8. Nxc3 {[%clk 0:03:00]}  Bxc3 {[%clk 0:02:38]} 9. bxc3 {[%clk 0:03:00]}  O-O {[%clk 0:02:39]} 10. Qf3 {[%clk 0:02:57]}  Be6 {[%clk 0:02:18]} 11. Bxe6 {[%clk 0:02:56]}  fxe6 {[%clk 0:02:19]} 12. Qg4 {[%clk 0:02:51]}  Qd5 {[%clk 0:02:18]} 13. a4 {[%clk 0:02:47]}  Rf6 {[%clk 0:02:13]} 14. Re1 {[%clk 0:02:21]}  Raf8 {[%clk 0:02:07]} 15. Be3 {[%clk 0:01:37]}  Rg6 {[%clk 0:02:05]} 16. Qh3 {[%clk 0:01:24]}  Rf3 {[%clk 0:02:01]} 17. g3 {[%clk 0:01:18]}  b6 {[%clk 0:01:35]} 18. Qh4 {[%clk 0:01:04]}  Rgf6 {[%clk 0:01:28]} 19. Rab1 {[%clk 0:01:01]}  Ne7 {[%clk 0:01:24]} 20. Rb5 {[%clk 0:00:56]}  Qc6 {[%clk 0:01:14]} 21. Rxe5 {[%clk 0:00:35]}  Qxc3 {[%clk 0:00:51]} 22. Bd4 {[%clk 0:00:21]}  Qc6 {[%clk 0:00:41]} 23. Qe4 {[%clk 0:00:20]}  Qxc2 {[%clk 0:00:24]} 24. Rxe6 {[%clk 0:00:16]}  Rxe6 {[%clk 0:00:19]} 25. Qxe6+ {[%clk 0:00:17]}  Rf7 {[%clk 0:00:19]} 26. Qd7 {[%clk 0:00:17]}  Ng6 {[%clk 0:00:14]} 27. Re8+ {[%clk 0:00:15]}  Nf8 {[%clk 0:00:14]} 28. Rxf8+ {[%clk 0:00:16]} 1-0


[Site "https://www.chess.com"]

[Event "Titled Tuesday Blitz January 10 Early 2023"]
[White "Alexakis, Dimitris"]
[Black "Le Ruyet, Leopold"]
[WhiteFideId "4277023"]
[BlackFideId "645923"]
[WhiteElo "2436"]
[BlackElo "2245"]
[Result "1-0"]
[Round "03"]
[TimeControl "180+2"]
[Date "2023.01.10"]
[WhiteClock "0:00:18"]
[BlackClock "0:00:15"]

1. Nf3 {[%clk 0:02:49]}  Nf6 {[%clk 0:02:59]} 2. g3 {[%clk 0:02:48]}  g6 {[%clk 0:02:59]} 3. Bg2 {[%clk 0:02:49]}  Bg7 {[%clk 0:03:00]} 4. O-O {[%clk 0:02:50]}  O-O {[%clk 0:03:01]} 5. c4 {[%clk 0:02:50]}  c5 {[%clk 0:02:57]} 6. Nc3 {[%clk 0:02:50]}  Nc6 {[%clk 0:02:53]} 7. d4 {[%clk 0:02:43]}  d6 {[%clk 0:02:54]} 8. h3 {[%clk 0:02:41]}  Bf5 {[%clk 0:02:43]} 9. Re1 {[%clk 0:02:35]}  Ne4 {[%clk 0:02:40]} 10. Nxe4 {[%clk 0:02:30]}  Bxe4 {[%clk 0:02:41]} 11. d5 {[%clk 0:02:31]}  Na5 {[%clk 0:02:38]} 12. Nd2 {[%clk 0:02:25]}  Bxg2 {[%clk 0:02:38]} 13. Kxg2 {[%clk 0:02:26]}  b5 {[%clk 0:02:26]} 14. cxb5 {[%clk 0:02:04]}  Qb6 {[%clk 0:02:23]} 15. Rb1 {[%clk 0:01:37]}  Qxb5 {[%clk 0:02:20]} 16. Qc2 {[%clk 0:01:15]}  c4 {[%clk 0:02:13]} 17. e4 {[%clk 0:01:13]}  Rfc8 {[%clk 0:02:13]} 18. h4 {[%clk 0:01:10]}  Rab8 {[%clk 0:02:00]} 19. h5 {[%clk 0:01:09]}  Qc5 {[%clk 0:01:50]} 20. Nf3 {[%clk 0:01:08]}  Rb6 {[%clk 0:01:14]} 21. Be3 {[%clk 0:01:00]}  Qb4 {[%clk 0:01:11]} 22. hxg6 {[%clk 0:00:57]}  hxg6 {[%clk 0:01:08]} 23. Bxb6 {[%clk 0:00:55]}  axb6 {[%clk 0:01:06]} 24. e5 {[%clk 0:00:50]}  dxe5 {[%clk 0:01:03]} 25. Nxe5 {[%clk 0:00:50]}  Qd6 {[%clk 0:01:01]} 26. Nf3 {[%clk 0:00:49]}  Qxd5 {[%clk 0:00:55]} 27. Rxe7 {[%clk 0:00:46]}  Nc6 {[%clk 0:00:55]} 28. Rd1 {[%clk 0:00:33]}  Nxe7 {[%clk 0:00:32]} 29. Rxd5 {[%clk 0:00:31]}  Nxd5 {[%clk 0:00:32]} 30. Ng5 {[%clk 0:00:26]}  c3 {[%clk 0:00:29]} 31. bxc3 {[%clk 0:00:25]}  Rxc3 {[%clk 0:00:23]} 32. Qe4 {[%clk 0:00:18]}  Rc5 {[%clk 0:00:15]} 33. Qe8+ {[%clk 0:00:18]} 1-0


[Site "https://www.chess.com"]

[Event "Titled Tuesday Blitz January 10 Early 2023"]
[White "Vakhlamov, Igor L."]
[Black "Crevatin, Leo"]
[WhiteFideId "24126748"]
[BlackFideId "1726307"]
[WhiteElo "2413"]
[BlackElo "2292"]
[Result "1-0"]
[Round "03"]
[TimeControl "180+2"]
[Date "2023.01.10"]
[WhiteClock "0:00:16"]
[BlackClock "0:00:01"]

1. e4 {[%clk 0:03:00]}  c5 {[%clk 0:02:59]} 2. Nf3 {[%clk 0:03:00]}  d6 {[%clk 0:03:00]} 3. Nc3 {[%clk 0:03:01]}  Nf6 {[%clk 0:02:59]} 4. d4 {[%clk 0:03:01]}  cxd4 {[%clk 0:02:59]} 5. Qxd4 {[%clk 0:03:02]}  Nc6 {[%clk 0:02:59]} 6. Bb5 {[%clk 0:03:02]}  Bd7 {[%clk 0:02:54]} 7. Bxc6 {[%clk 0:03:03]}  Bxc6 {[%clk 0:02:55]} 8. Bg5 {[%clk 0:03:03]}  e6 {[%clk 0:02:55]} 9. O-O-O {[%clk 0:03:03]}  Be7 {[%clk 0:02:56]} 10. Rhe1 {[%clk 0:03:03]}  Qb6 {[%clk 0:02:45]} 11. Qxb6 {[%clk 0:03:00]}  axb6 {[%clk 0:02:44]} 12. Nd4 {[%clk 0:02:55]}  Nd7 {[%clk 0:02:18]} 13. Bxe7 {[%clk 0:02:47]}  Kxe7 {[%clk 0:02:19]} 14. a3 {[%clk 0:02:44]}  Ne5 {[%clk 0:02:13]} 15. f3 {[%clk 0:02:31]}  Rac8 {[%clk 0:02:07]} 16. Kb1 {[%clk 0:02:30]}  Rhd8 {[%clk 0:02:06]} 17. Re2 {[%clk 0:02:23]}  Be8 {[%clk 0:02:04]} 18. Nb3 {[%clk 0:01:52]}  g5 {[%clk 0:02:01]} 19. Na2 {[%clk 0:01:43]}  Bb5 {[%clk 0:01:56]} 20. Ree1 {[%clk 0:01:42]}  Ba4 {[%clk 0:01:51]} 21. Nac1 {[%clk 0:01:37]}  h5 {[%clk 0:01:50]} 22. Rd4 {[%clk 0:01:33]}  Bc6 {[%clk 0:01:46]} 23. Nd3 {[%clk 0:01:28]}  f6 {[%clk 0:01:41]} 24. Rb4 {[%clk 0:01:25]}  Nd7 {[%clk 0:01:35]} 25. Nd4 {[%clk 0:01:21]}  Rg8 {[%clk 0:01:24]} 26. a4 {[%clk 0:01:20]}  Ra8 {[%clk 0:01:22]} 27. b3 {[%clk 0:01:20]}  Kd8 {[%clk 0:01:14]} 28. Kb2 {[%clk 0:01:19]}  Ke7 {[%clk 0:01:13]} 29. Rc4 {[%clk 0:01:04]}  Rac8 {[%clk 0:01:07]} 30. Rc3 {[%clk 0:01:03]}  Ne5 {[%clk 0:01:02]} 31. Rd1 {[%clk 0:00:54]}  Bd7 {[%clk 0:01:00]} 32. Nxe5 {[%clk 0:00:52]}  fxe5 {[%clk 0:00:59]} 33. Rxc8 {[%clk 0:00:49]}  Rxc8 {[%clk 0:00:57]} 34. Ne2 {[%clk 0:00:46]}  Rf8 {[%clk 0:00:54]} 35. h3 {[%clk 0:00:39]}  g4 {[%clk 0:00:49]} 36. hxg4 {[%clk 0:00:40]}  hxg4 {[%clk 0:00:50]} 37. Rd3 {[%clk 0:00:41]}  Bc6 {[%clk 0:00:47]} 38. Nc3 {[%clk 0:00:40]}  gxf3 {[%clk 0:00:45]} 39. gxf3 {[%clk 0:00:41]}  Rd8 {[%clk 0:00:40]} 40. Ka3 {[%clk 0:00:35]}  d5 {[%clk 0:00:39]} 41. Kb4 {[%clk 0:00:35]}  d4 {[%clk 0:00:20]} 42. Nb5 {[%clk 0:00:35]}  Rf8 {[%clk 0:00:18]} 43. c3 {[%clk 0:00:34]}  dxc3 {[%clk 0:00:18]} 44. Rxc3 {[%clk 0:00:29]}  Rh8 {[%clk 0:00:16]} 45. Na3 {[%clk 0:00:29]}  Be8 {[%clk 0:00:08]} 46. Nc4 {[%clk 0:00:29]}  Kf6 {[%clk 0:00:09]} 47. Nxb6 {[%clk 0:00:29]}  Rh1 {[%clk 0:00:07]} 48. Nc4 {[%clk 0:00:29]}  Rf1 {[%clk 0:00:07]} 49. a5 {[%clk 0:00:27]}  Ra1 {[%clk 0:00:06]} 50. Kc5 {[%clk 0:00:23]}  Bc6 {[%clk 0:00:03]} 51. b4 {[%clk 0:00:24]}  Be8 {[%clk 0:00:03]} 52. Na3 {[%clk 0:00:19]}  Ra2 {[%clk 0:00:02]} 53. Kb6 {[%clk 0:00:19]}  Rb2 {[%clk 0:00:02]} 54. b5 {[%clk 0:00:18]}  Bc6 {[%clk 0:00:01]} 55. a6 {[%clk 0:00:16]}  Bxb5 {[%clk 0:00:01]} 56. Nxb5 {[%clk 0:00:15]}  bxa6 {[%clk 0:00:01]} 57. Kxa6 {[%clk 0:00:16]}  Kg5 {[%clk 0:00:02]} 58. Nc7 {[%clk 0:00:15]}  Kf4 {[%clk 0:00:01]} 59. Nxe6+ {[%clk 0:00:16]} 1-0


[Site "https://www.chess.com"]